{"text_format":"2","workbook":"xlsx","n_sheets":2,"sheets":["Plantilla","ESPECIFICACIONES"],"not_rendered":{"charts":0,"images":13,"macros":0,"external_links":0,"defined_names":1,"comments":0,"pivot_tables":0},"unopened":[],"bounds":{"document_bytes":16777216,"sheet_cells":100000,"run_cost":"one","rows_first":2000,"rows_last":500,"rows_between":2000,"halvings":0,"cell_chars":16384,"cell_head_chars":4096},"cells_cut":0,"cells_raw":0,"read":"whole","date_system":"1900"}

{"sheet":"Plantilla","index":0,"n_rows":187,"n_cols":7,"rows_kept":187,"cut":false,"hidden":false,"merged":[[169,5,169,6],[170,5,170,6],[185,0,185,1],[185,3,185,6],[186,0,186,1],[186,3,186,6],[181,5,181,6],[183,0,183,1],[183,3,183,6],[184,0,184,1],[184,3,184,5],[0,0,0,5],[1,0,1,5],[2,0,2,5],[3,0,3,1],[7,4,7,5],[11,0,11,6],[168,5,168,6],[60,0,60,6],[57,5,57,6],[114,5,114,6],[140,0,140,6],[165,5,165,6],[116,0,116,6],[138,5,138,6]]}
["Confección de Cisterna, Caseta de bomba y Adecuación Eléctrica"]
["Recinto Eugenio María de Hostos"]
["Plantilla de Presupuesto"]
["Datos Generales"]
[]
[]
[null,"Espacio para poner logo, nombre y RNC compañía"]
[{"$nulls":4},"Versión: 2.0"]
[]
[{"$nulls":4},"Fecha:"]
[]
["Concepto I:Caseta de Bombas"]
[]
["No","Descripción","UD","Cantidad","PU","Valor","Valor Partida "]
[1,"PRELIMINARES ",{"$nulls":4},{"$f":"SUM(F16:F21)","v":0}]
[{"$f":"+A15+0.01","v":1.01},"Replanteo","PA",1,null,{"$f":"+E16*D16","v":0}]
[{"$f":"+A16+0.01","v":1.02},"Equipos de protección personal y sanitarios","PA",1,null,0]
[1.03,"Señalización y rotulación en obra. Letreros \"NO PASE, DESVIO\" etc..","ud",6,null,0]
[1.04,"Corte  de arboles ","ud",8,null,0]
[{"$f":"+A19+0.01","v":1.05},"Valla de protección 7 pies alt. en madera y malla de vinyl lumínico, postes 2x4 @ 3mts. Y 2 líneas de correas e 1x4","ML",90,null,0]
[1.06,"Movilización de furgones existentes dentro del recinto hacia área de parqueo","ud",3,null,0]
[]
[2,"MOVIMIENTO DE TIERRRAS",{"$nulls":4},{"$f":"SUM(F24:F26)","v":0}]
[{"$f":"+A23+0.01","v":2.0099999999999998},"Remoción de capa vegetal 0.30mts","m³",172.8,null,{"$f":"E24*D24","v":0}]
[{"$f":"+A24+0.01","v":2.0199999999999996},"Relleno compactado \"Caliche\"","m³",190.08,null,{"$f":"E25*D25","v":0}]
[{"$f":"+A25+0.01","v":2.0299999999999994},"Bote de material sobrante producto de las excavaciones y demoliciones","m³",290,null,{"$f":"E26*D26","v":0}]
[]
[3,"HORMIGON ARMADO",{"$nulls":4},{"$f":"SUM(F29:F41)","v":0}]
[{"$f":"+A28+0.01","v":3.01},"Excavación de zapatas de muros. Excavación roca con compresor.","m³",4.93,null,{"$f":"E29*D29","v":0}]
[{"$f":"+A29+0.01","v":3.0199999999999996},"Zapatas horm. Armado. blocks de 6\",F'c 240kg/cm² ,de 0.45x0.25mts , 3 Ø3/8, Ø3/8\"@0.25.","m³",2.77,null,{"$f":"E30*D30","v":0}]
[3.0299999999999994,"Losa de piso de 10 cm. en concreto F'c 180kg/cm², con malla electro-soldada D2.3 150 x 150 mm.","m²",7.28,null,0]
[3.0399999999999991,"Mezcla pulido de piso con mortero de cemento  1:2","m²",7.28,null,0]
[3.0499999999999989,"Losa de techo en H.A F'c 180kg/cm²,H= 0.12mts,Ø3/8\"@0.20 A.D","m³",1.74,null,0]
[3.0599999999999987,"Muros de blocks de 6\", bastones 3/8\"@0.60","m²",28.05,null,0]
[3.0699999999999985,"Empañetado exterior","m²",28.05,null,0]
[3.0799999999999983,"Empañetado interior  y techo","m²",40.36,null,0]
[3.0899999999999981,"Fino de cemento para techos con mortero 1:2","m²",13.65,null,0]
[3.0999999999999979,"Zabaletas en cemento con mortero 1:2","ml",15.12,null,0]
[3.1099999999999977,"H.A en dinteles 0.15x0.20mts, ,F'c 210kg/cm² . 4 de Ø1/2\", Est Ø 3/8\"@0.20cms","m³",0.17,null,0]
[3.1199999999999974,"H.A en col. De amarre 0.15X0.30mts,F'c 210kg/cm²,4 de Ø1/2\", Est Ø 3/8\"@0.20cms","m³",0.5,null,0]
[3.1299999999999972,"Bloques ornamentales 0.20x0.40","ud",8,null,0]
[]
[4,"INSTALACIONES ELECTRICAS",{"$nulls":4},{"$f":"SUM(F44:F49)","v":0}]
[{"$f":"+A43+0.01","v":4.01},"Salida para Iluminación Cenital en Tub. PVC 1/2\" SDR-26","ud",2,null,{"$f":"E44*D44","v":0}]
[{"$f":"+A44+0.01","v":4.0199999999999996},"Salida para tomacorriente doble uso normal, 15amps, 120v, color blanco, tapa sin tornillos instalado a 0.40mt snpt en Tub. PVC 1/2\" SDR-26","ud",2,null,0]
[4.0299999999999994,"Salida para interruptor modular doble a ser instalado a 1.20mts snpt, color blanco en Tub. PVC 1/2\" SDR-26","ud",1,null,0]
[4.0399999999999991,"Alimentador A07 trifásico desde PB1 hasta PCB.","pl",78,null,0]
[4.0499999999999989,"Panel de distribución  \"PCB\" en cuarto de bombas","pa",1,null,0]
[4.0599999999999987,"Conexión eléctrica de caseta a bomba de pozo. Incluye zanja(0.40x0.060), cama de arena, relleno,tub. 1 1/2\" sdr-26, 2 thnn-12,1-thnn 14","pl",160,null,0]
[]
[5,"MISCELANEOS",{"$nulls":4},{"$f":"SUM(F52:F56)","v":0}]
[{"$f":"+A51+0.01","v":5.01},"Pintura satinada","m²",64.650000000000006,null,{"$f":"E52*D52","v":0}]
[5.0199999999999996,"Impermeabilizante de techos, lona Asfáltica lisa, de 4.5 mm, longitud del rollo: 10m, peso aprox. Del rollo: 49.4 kg. Solape mínimo de 10 cm transversal y 25 cm longitudinal. 10 años de garantía.","m²",14.95,null,0]
[5.0299999999999994,"Puertas en perfiles de acero negro, de 2x2 con portacandado, aplicar una mano de antióxido y una mano de mant. Industrial, puerta de 1.00mts x 2.10mts","ud",1,null,0]
[5.0399999999999991,"Bote de escombros","pa",1,null,0]
[5.0499999999999989,"Limpieza continua y final","pa",1,null,0]
[]
[null,"SUBTOTAL CONCEPTO I",null,null,null,{"$f":"SUM(G15:G51)","v":0}]
[]
[]
["Concepto II: Cisterna de 11.00 X 7.40X 4.10"]
[]
[6,"EXCAVACIONES",{"$nulls":4},{"$f":"SUM(F64:F67)","v":0}]
[{"$f":"+A63+0.01","v":6.01},"Excavación roca con compresor (70%) del total","m³",534,null,{"$f":"E64*D64","v":0}]
[{"$f":"+A64+0.01","v":6.02},"Relleno de reposición compactado ","m³",291.60000000000002,null,{"$f":"E65*D65","v":0}]
[6.0299999999999994,"Bote de Material (40% esponjamiento)","m³",748.44,null,0]
[6.0399999999999991,"Excavación roca con compresor (70%) del total, para tuberías de agua soterradas","m³",145.83000000000001,null,0]
[]
[7,"HORMIGON ARMADO",{"$nulls":4},{"$f":"SUM(F70:F76)","v":0}]
[{"$f":"A69+0.01","v":7.01},"H.A F'c 240kg/cm², en zapata perimetral de 0.80 x 0.30 mts, cangrejos de Ø 1/2 @ 20 cm A.D ","m³",8.64,null,{"$f":"E70*D70","v":0}]
[{"$f":"A70+0.01","v":7.02},"H.A F'c 240kg/cm², en muro perimetral, varillas de Ø 1/2 @ 20 cm vertical y varillas de Ø 3/8 @ 20 cm horizontal (espesor 20cms)","m³",34.78,null,{"$f":"E71*D71","v":0}]
[7.0299999999999994,"H.A F'c 240kg/cm² en columnas de 30 cm x 30 cm  4 Ø3/4 +  4 Ø1/2   ,  estribos de Ø 3/8 @15 cm, ","m³",0.38,null,0]
[7.0399999999999991,"H.A F'c 240kg/cm², Losa Techo H=15cms,Ø 3/8\" @ 15cm A.D","m³",13.43,null,0]
[7.0499999999999989,"H.A F'c 240kg/cm², Losa fondo H=15cms,Ø 3/8\" @ 20cm A.D","m³",11.14,null,0]
[7.0599999999999987,"H.A F'c 240kg/cm² en Viga de carga, de 25cms x 45cms,  6 Ø3/4 , estribos de Ø 3/8 @15 cm, ","m³",1.1000000000000001,null,{"$f":"E75*D75","v":0}]
[{"$f":"A75+0.01","v":7.0699999999999985},"Hormigón de limpieza F'c 140kg/cm²","m³",4.08,null,0]
[]
[8,"TERMINACION DE SUPERFICIE",{"$nulls":4},{"$f":"SUM(F79:F85)","v":0}]
[{"$f":"+A78+0.01","v":8.01},"Empañetado pulido muros y piso","m²",296.24,null,{"$f":"E79*D79","v":0}]
[{"$f":"+A79+0.01","v":8.02},"Zabaleta Pared Interna","ml",36.96,null,{"$f":"E80*D80","v":0}]
[8.0299999999999994,"Careteo en superficie de muros y losas","m²",296.24,null,0]
[8.0399999999999991,"Suministro. Y Colocación de Tapa en aluminio 0.80x0.80cms","ud",1,null,0]
[8.0499999999999989]
[8.0599999999999987,"Fino de fondo mortero 1:2","m²",81.62,null,0]
[8.0699999999999985,"Impermeabilizante tipo cementicio en muros y losa de fondo de cisterna","m²",377.86,null,0]
[]
[9,"EQUIPO DE BOMBEO",{"$nulls":4},{"$f":"SUM(F88:F101)","v":0}]
[{"$f":"+A87+0.01","v":9.01},"Suministro y colocación de bomba(he) de 7.5 hp,\nTrifasica,de 208-230/460v \nConstruida en hierro fundido, succión y descarga de 1-1/2\"., \nCon capacidad para 84 gpm max y 197 pies de tdh máx.\nAcoplada a motor de 7.5 hp, 3 fases, 230/460 volt.","ud",2,null,{"$f":"E88*D88","v":0}]
[{"$f":"+A88+0.01","v":9.02},"Panel de control de presión constante doble weg 7.5hp, 230 v. \nVariador de velocidad WG. Controlador programable WEG.Transductor de presión. \nAbanico de enfriamiento.Breaker  para control General. Caja a prueba de polvo. \nProtección térmica, guarda motores. \nContactores para cada bomba, protección contra perdida de fase. \nLuces piloto. Selectores de tres posiciones.","pa",1,null,{"$f":"E89*D89","v":0}]
[9.0299999999999994,"Tanque precargado en hierro, membrana reemplazable de fácil instalación, \nCon capacidad para 85 gls equivalente a 250 gls. en tanque convencional, mod. ps-85/wm-25. \ndimensión: diámetro 2","ud",1,null,0]
[9.0399999999999991,"Flota eléctrica 1nc/1no.\nInterruptor tipo flota para protección de trabajo en seco, con contactos 1 n.c. 1 n.o. ","ud",2,null,0]
[9.0499999999999989,"Pesa para flota de nivel. cat. 1002230","ud",2,null,0]
[9.0599999999999987,"Manómetro  diámetro de esfera 2.5 pulgadas conexión por debajo rango de 0-100 psi.","ud",2,null,0]
[9.0699999999999985,"Switch de presión con rango de 40-60 psi, diferencial ajustable.","ud",2,null,0]
[9.0799999999999983,"Tuberías y piezas misceláneas PPR PN-20","pa",1,null,0]
[9.0899999999999981,"Tubería soterrada de 3\" PPR PN-20 CON TERMO FUSION  \nPara uso futuro + 10% desp. Incluye tubería, instalación, excavación, disposición de material, cama de arena y relleno. En caso de cruce con tubería eléctrica, el agua potable deberá pasar por debajo, al menos 20 cm.","ml",145,null,0]
[9.0999999999999979,"Tubería soterrada de 2\" PPR PN-20 CON TERMO FUSION  para uso futuro + 10% desp. \nIncluye tubería, instalación, excavación, disposición de material, cama de arena y relleno.","ml",6,null,0]
[9.1099999999999977,"Tubería soterrada de 1 1/ 2\" PPR PN-20 CON TERMO FUSION  para uso futuro + 10% desp.\n Incluye tubería, instalación, excavación, disposición de material, cama de arena y relleno.","ml",24,null,0]
[9.1199999999999974,"Válvula de Control en acometidas  interiores Ø3\"   bronce con rosca hembra","ud",4,null,0]
[9.1299999999999972,"Registros en bloques de 6\"  0.60x0.60 cms","ud",4,null,0]
[9.139999999999997,"Mano de obra","pa",1,null,0]
[null,"Nota: Los equipos deben de tener mínimo 2 años de garantía en piezas y servicios"]
[]
[10,"POZO Y BOMBA SUMERGIBLE",{"$nulls":4},{"$f":"SUM(F105:F112)","v":0}]
[{"$f":"+A104+0.01","v":10.01},"Perforación de pozo en 10\" con camisa en tuberías P.V.C SDR-26 8\", 30 mts de profundidad","ud",1,null,{"$f":"E105*D105","v":0}]
[{"$f":"+A105+0.01","v":10.02},"Análisis Físico - Químico y Bacteriológico completo, en un laboratorio certificado de la ciudad.","pa",1,null,{"$f":"E106*D106","v":0}]
[10.029999999999999,"Mano de obra de instalación y puesta en marcha","pa",1,null,0]
[10.039999999999999,"Suministro e instalación de electrobomba sumergible, \nDescarga de 2\",capacidad 42 gpm, mod. 3510 2HP  MONOFASICO 230V. \nMotor Incluido, caja de control Piezas y tuberías para instalación \nAlambre de goma 12/3 , flota eléctrica y  pesa para flotas de nivel. \nIncluir prueba de bombeo : aforo cuantitativo 48hrs","ud",1,null,0]
[10.049999999999999,"Tubería soterrada de  2\" PPR PN-20 CON TERMO FUSION  para bomba sumergible","ml",33,null,0]
[10.059999999999999,"Acometida domiciliaria de 2\"","pa",1,null,0]
[10.069999999999999,"Piezas varias","pa",1,null,{"$f":"E111*D111","v":0}]
[10.079999999999998,"Conexión desde registros a edificios existentes. El contratista debe verificar con personal de mantenimiento de la institución el punto de conexión desde el registro hasta la edificación. Considerar las adecuaciones necesarias para la conexión.","ud",4,null,{"$f":"E112*D112","v":0}]
[null,"Nota: Los equipos deben de tener mínimo 2 años de garantía en piezas y servicios"]
[]
[null,"SUBTOTAL CONCEPTO II",null,null,null,{"$f":"SUM(G63:G114)","v":0}]
[]
["Concepto III:Confección de cancha de baloncesto"]
[]
[1,"PRELIMINARES",{"$nulls":4},{"$f":"SUM(F120:F122)","v":0}]
[{"$f":"+A119+0.01","v":1.01},"Demolición de cancha y columnas con equipos menores(incluye: losa, columnas, tableros, etc.)","M³",66.33,null,{"$f":"+E120*D120","v":0}]
[1.02,"Excavación en roca zapata de columnas","M³",4.3499999999999996,null,0]
[{"$f":"+A121+0.01","v":1.03},"Bote de material sobrante","M³",79.599999999999994,null,{"$f":"E122*D122","v":0}]
[]
[2,"HORMIGÓN ARMADO",{"$nulls":4},{"$f":"SUM(F125:F127)","v":0}]
[{"$f":"+A124+0.01","v":2.0099999999999998},"H.A F'c 240kg/cm², en zapata de columnas de 1.20 x 0.50 mts, cangrejos de Ø 1/2 @ 20 cm A.D ","M³",1.1200000000000001,null,{"$f":"E125*D125","v":0}]
[2.0199999999999996,"H.A F'c 210kg/cm², Losa de piso, con malla electrosoldada D2.3 x D2.3 x 100x100","M²",576,null,{"$f":"E126*D126","v":0}]
[2.0299999999999994,"H.A F'c 240kg/cm² en columnas para canchas con Ø 3/8 @10 cm ","M³",1.05,null,0]
[]
[3,"MISCELANEOS",{"$nulls":4},{"$f":"SUM(F130:F137)","v":0}]
[{"$f":"+A129+0.01","v":3.01},"Suministro y colocación de tablero de básquetbol de 72\", en fibra de vidrio, con aro con spring y mallas","UD",2,null,{"$f":"E130*D130","v":0}]
[{"$f":"+A130+0.01","v":3.0199999999999996},"Confección de bancas en hormigón para cancha","UD",8,null,0]
[3.0299999999999994,"Pintura de cancha en piso","PA",1,null,0]
[3.0399999999999991,"Confección de jardinera con grama verde y grava decorativa blanca","PA",1,null,0]
[3.0499999999999989,"Poste metálico cuadrado 6\"x6\"x30' con fundación en concreto para luminaria","UD",4,null,0]
[3.0599999999999987,"Luminaria 120 voltios 100w led tipo shoe box para instalación en muro o poste.","UD",4,null,0]
[3.0699999999999985,"Bote de escombros","PA",1,null,0]
[3.0799999999999983,"Limpieza continua y final","PA",1,null,0]
[]
[null,"SUBTOTAL CONCEPTO III",null,null,null,{"$f":"SUM(G87:G137)","v":0}]
[]
["Concepto IV: Alimentación eléctrica"]
[]
[14,"Alimentación eléctrica",{"$nulls":4},{"$f":"SUM(F145:F156)","v":0}]
[]
[{"$f":"A143+0.01","v":14.01},"Edificio de aulas","Pies",300,null,{"$f":"+E145*D145","v":0}]
[null,"Alimentador  desde \"Casa de planta\" hasta \"Edificio de aulas\", compuesto por:\n2C - THHN #4/0 x Fase (trifásico)\n2C - THHN #3/0 Neutro\n1C - THHN #1/0 Tierra\n1T - 3\"Ø PVC."]
[null,"Incluye materiales, herramientas, equipos y mano de obra"]
[]
[{"$f":"A145+0.01","v":14.02},"Edificio Cerema","Pies",350,null,{"$f":"+E149*D149","v":0}]
[null,"Alimentador  desde \"Casa de planta\" hasta \"Cerema\", compuesto por:\n 4C - THHN #4/0 x Fase (trifásico)\n 4C - THHN #3/0 Neutro\n 2C - THHN #1/0 Tierra\n 2T - 3\"Ø PVC."]
[null,"Incluye materiales, herramientas, equipos y mano de obra"]
[]
[{"$f":"A149+0.01","v":14.03},"Excavación roca con compresor (70%) del total, para tuberías de alimentación eléctrica. De 60 cm x 35 cm x 1.00 m ","m³",50,null,{"$f":"+E153*D153","v":0}]
[{"$f":"+A153+0.01","v":14.04},"Relleno de reposición compactado","m³",50,null,0]
[{"$f":"+A154+0.01","v":14.049999999999999},"Tubería SDR 26 de 3 Pulg. Para disponibilidad dentro de registros. Debe incluir materiales, equipos y mano de obra","pies",1200,null,0]
[14.059999999999999,"Registro eléctrico. Elaborado con block de 6\" y bastones de 3/8\"  @ 0.40. Con terminación interior en todas sus caras. Losa de piso y tapa de 10 cm de espeso con 3/8\" @ 0.15 A.D. Dimensión aprox. 90 cm x 90 cm x 80 cm de profundidad","ud",5,null,0]
[]
[15,"MISCELANEOS",{"$nulls":4},{"$f":"SUM(F160:F164)","v":0}]
[]
[{"$f":"+A158+0.01","v":15.01},"Limpieza continua y final","pa",1,null,{"$f":"+E160*D160","v":0}]
[{"$f":"+A160+0.01","v":15.02},"Bote de escombros","pa",1,null,{"$f":"+E161*D161","v":0}]
[15.03,"Reparación de calles  con asfalto, posterior a la confección de zanjas","m²",30,null,0]
[15.04,"Reconstrucción de contenes posterior a la confección de zanjas.","ml",100,null,0]
[15.049999999999999,"Reparación de aceras  posterior a la confección de zanjas.","m²",200,null,0]
[]
[null,"SUBTOTAL CONCEPTO IV",null,null,null,{"$f":"SUM(G143:G165)","v":0}]
[]
[]
[null,"SUBTOTAL GENERAL",null,null,null,{"$f":"+F166+F115+F58","v":0}]
[null,"IMPREVISTO 10% (CONTRA PRESENTACION DE FACTURA)",null,null,null,{"$f":"+F169*0.1","v":0}]
[null,"SUBTOTAL + IMPREVISTOS",null,null,null,{"$f":"+F170+F169","v":0}]
[]
[19,"COSTOS INDIRECTOS",{"$nulls":4},{"$f":"SUM(F174:F180)","v":0}]
[{"$f":"+A173+0.01","v":19.010000000000002},"Dirección técnica y responsabilidad",null,null,0.1,{"$f":"$F$171*E174","v":0}]
[{"$f":"+A174+0.01","v":19.020000000000003},"Gastos administrativos",null,null,null,{"$f":"$F$171*E175","v":0}]
[19.030000000000005,"Transporte",null,null,null,0]
[19.040000000000006,"Póliza todo riesgo (contra presentación de factura)",null,null,null,0]
[19.050000000000008,"Seguros y fianzas (contra presentación de factura)",null,null,null,0]
[19.060000000000009,"Ley 6-86 sobre Liquidación y Prestaciones Laborales",null,null,0.01,0]
[19.070000000000011,"CODIA (1 X 1000)",null,null,1E-3,0]
[]
[null,"TOTAL GENERAL",null,null,null,{"$f":"F171+G173","v":0}]
[]
["Presupuesto preparado por:",null,null,"Revisado y autorizado por:"]
[]
[]
["(nombra y firma del responsable)",null,null,"(nombre y firma del responsable)"]

{"sheet":"ESPECIFICACIONES","index":1,"n_rows":22,"n_cols":5,"rows_kept":22,"cut":false,"hidden":false,"merged":[[19,1,19,4],[3,1,3,5],[5,1,5,4]]}
[]
[]
[]
[null,"Tabla de especificaciones de materiales"]
[]
[null,"1. LUMINARIAS Y ACCESORIOS ELECTRICOS"]
[null,"NOMBRE","ESPECIFICACION","COLOR","IMAGEN DE REFERENCIA"]
[null,"Interruptor Sencillo","Interruptor simple 120 V, con tapa decorativa color blanco. Certificación UL","Placas y módulos de plástico blanco."]
[null,"Tomacorrientes","Tomacorriente 120 V, NEMA 5-15R, con punto de tierra, tapa plástica color blanco. Certificación UL","Placas y módulos de plástico blanco."]
[null,"Bomba","bomba(he) de 7.5 hp,\nTrifasica,de 208-230/460v \nConstruida en hierro fundido, succión y descarga de 1-1/2\"., \nCon capacidad para 84 gpm max y 197 pies de tdh máx.\nAcoplada a motor de 7.5 hp, 3 fases, 230/460 volt.\nMínimo 2 años de garantía\n","Color verde"]
[null,"Panel de control de bomba","Panel de control de presión constante doble weg 7.5hp, 230 v. \nVariador de velocidad WG. Controlador programable WEG.Transductor de presión. \nAbanico de enfriamiento.Breaker  para control General. Caja a prueba de polvo. \nProtección térmica, guarda motores. \nContactores para cada bomba, protección contra perdida de fase. \nLuces piloto. Selectores de tres posiciones.\nMínimo 2 años de garantía","Carcasa gris"]
[null,"Tanque de hierro","Tanque precargado en hierro, membrana reemplazable de fácil instalación, \nCon capacidad para 85 gls equivalente a 250 gls. en tanque convencional, mod. ps-85/wm-25. \ndimensión: diámetro 2\nMínimo 2 años de garantía","Color azul"]
[null,"Flota eléctrica","Flota eléctrica 1nc/1no.\nInterruptor tipo flota para protección de trabajo en seco, con contactos 1 n.c. 1 n.o. \nMínimo 2 años de garantía","Color gris"]
[null,"Pesa para flota","Pesa para flota de nivel. cat. 1002230\nMínimo 2 años de garantía","Cubierta color gris"]
[null,"Manómetro","Manómetro  diámetro de esfera 2.5 pulgadas conexión por debajo rango de 0-100 psi.\nMínimo 2 años de garantía","Acabado cromado"]
[null,"Switch de presión","Switch de presión con rango de 40-60 psi, diferencial ajustable.\nMínimo 2 años de garantía","Color negro"]
[null,"Bomba sumergible","electrobomba sumergible, \nDescarga de 2\",capacidad 42 gpm, mod. 3510 2HP  MONOFASICO 230V. \nMotor Incluido, caja de control Piezas y tuberías para instalación \nAlambre de goma 12/3 , flota eléctrica y  pesa para flotas de nivel. \nIncluir prueba de bombeo : aforo cuantitativo 48hrs\nMínimo 2 años de garantía","Acabado cromado"]
[null,"Luces en cancha","Luminaria 120 voltios 100w led tipo shoe box para instalación en muro o poste.\nMínimo 2 años de garantía","Carcasa negra"]
[]
[null,"2. MISCELANEOS"]
[null,"NOMBRE","ESPECIFICACION","TERMINACION","IMAGEN DE REFERENCIA"]
[null,"Tablero cancha","Tablero de Basketball 72\" fiberglass, con aro con\nspring heavy duty y malla","Blanco"]